[Event "*** Titled Tuesday Blitz"]
[Site "Chess.com"]
[Date "2019.07.02"]
[Round "9"]
[White "dopolian"]
[Black "kosmeg"]
[Result "1/2-1/2"]
[WhiteElo "2353"]
[BlackElo "2464"]
[TimeControl "180+2"]
[EndTime "15:04:13 PDT"]
[Termination "Game drawn by repetition"]

1. e4 {[%clk 0:03:01.9]} 1... e5 {[%clk 0:03:01]} 2. Nf3 {[%clk 0:02:59.2]} 2...
Nc6 {[%clk 0:03:01.9]} 3. Bb5 {[%clk 0:03:00.1]} 3... a6 {[%clk 0:03:02]} 4. Ba4
{[%clk 0:03:00.9]} 4... Nf6 {[%clk 0:03:03.5]} 5. O-O {[%clk 0:03:01.8]} 5...
Be7 {[%clk 0:03:04.4]} 6. Re1 {[%clk 0:03:02.3]} 6... b5 {[%clk 0:03:04.8]} 7.
Bb3 {[%clk 0:03:03.7]} 7... d6 {[%clk 0:03:06.7]} 8. c3 {[%clk 0:03:05.1]} 8...
O-O {[%clk 0:03:07.6]} 9. h3 {[%clk 0:03:06.1]} 9... Nb8 {[%clk 0:03:08.8]} 10.
d4 {[%clk 0:03:06.5]} 10... Nbd7 {[%clk 0:03:10.3]} 11. Nbd2 {[%clk 0:03:08.1]}
11... Bb7 {[%clk 0:03:05.6]} 12. Bc2 {[%clk 0:03:09.3]} 12... Re8 {[%clk
0:03:06.5]} 13. b3 {[%clk 0:02:55.2]} 13... Bf8 {[%clk 0:03:04.2]} 14. Bb2
{[%clk 0:02:56.2]} 14... a5 {[%clk 0:02:55.1]} 15. c4 {[%clk 0:02:44.7]} 15...
bxc4 {[%clk 0:02:41.6]} 16. dxe5 {[%clk 0:02:19.3]} 16... cxb3 {[%clk
0:02:26.2]} 17. Bxb3 {[%clk 0:02:13.2]} 17... Nxe5 {[%clk 0:02:27.3]} 18. Bxe5
{[%clk 0:01:58.4]} 18... dxe5 {[%clk 0:02:27.9]} 19. Ng5 {[%clk 0:01:58.6]}
19... Re7 {[%clk 0:02:14.4]} 20. Nxf7 {[%clk 0:01:50.6]} 20... Rxf7 {[%clk
0:01:42.8]} 21. Bxf7+ {[%clk 0:01:51.4]} 21... Kxf7 {[%clk 0:01:44.7]} 22. Qb3+
{[%clk 0:01:52.4]} 22... Bd5 {[%clk 0:01:46.3]} 23. exd5 {[%clk 0:01:53.3]}
23... Qxd5 {[%clk 0:01:48.2]} 24. Rxe5 {[%clk 0:01:48.9]} 24... Qxb3 {[%clk
0:01:46.7]} 25. Nxb3 {[%clk 0:01:46.1]} 25... Bb4 {[%clk 0:01:41]} 26. Rc1
{[%clk 0:01:40.7]} 26... Ra7 {[%clk 0:01:41]} 27. Rc6 {[%clk 0:01:26.5]} 27...
a4 {[%clk 0:01:31.5]} 28. Nc5 {[%clk 0:01:04.6]} 28... Bc3 {[%clk 0:01:15.1]}
29. Re3 {[%clk 0:01:00.7]} 29... Bd4 {[%clk 0:01:16.2]} 30. Ra3 {[%clk
0:00:59.9]} 30... Ra5 {[%clk 0:01:12.3]} 31. Rxc7+ {[%clk 0:00:52.7]} 31... Kg6
{[%clk 0:01:13.4]} 32. Nxa4 {[%clk 0:00:15.8]} 32... Ne4 {[%clk 0:01:13.3]} 33.
Rc4 {[%clk 0:00:14.4]} 33... Bxf2+ {[%clk 0:01:07.7]} 34. Kh2 {[%clk 0:00:09.9]}
34... Nd2 {[%clk 0:00:49.6]} 35. Rc6+ {[%clk 0:00:10.5]} 35... Kh5 {[%clk
0:00:46.7]} 36. Rd3 {[%clk 0:00:09.9]} 36... Nf1+ {[%clk 0:00:41.7]} 37. Kh1
{[%clk 0:00:08.9]} 37... Rxa4 {[%clk 0:00:36.6]} 38. Rc2 {[%clk 0:00:06.6]}
38... Ng3+ {[%clk 0:00:31]} 39. Kh2 {[%clk 0:00:07.4]} 39... Nf1+ {[%clk
0:00:32]} 40. Kh1 {[%clk 0:00:08.8]} 40... Ba7 {[%clk 0:00:16.8]} 41. Rf3 {[%clk
0:00:08.5]} 41... Ne3 {[%clk 0:00:15.7]} 42. Re2 {[%clk 0:00:08.9]} 42... Nd1
{[%clk 0:00:08.1]} 43. Rd2 {[%clk 0:00:07.5]} 43... Ne3 {[%clk 0:00:05.2]} 44.
Re2 {[%clk 0:00:08.7]} 44... Nd1 {[%clk 0:00:06.6]} 45. Re5+ {[%clk 0:00:06.3]}
45... g5 {[%clk 0:00:06.7]} 46. Re2 {[%clk 0:00:05.5]} 46... Rd4 {[%clk
0:00:06]} 47. a3 {[%clk 0:00:05.1]} 47... Rd7 {[%clk 0:00:06.3]} 48. g4+ {[%clk
0:00:03.9]} 48... Kh4 {[%clk 0:00:06.7]} 49. Re6 {[%clk 0:00:05.2]} 49... h5
{[%clk 0:00:05.5]} 50. gxh5 {[%clk 0:00:06.1]} 50... Nf2+ {[%clk 0:00:06]} 51.
Kg2 {[%clk 0:00:07]} 51... Rd2 {[%clk 0:00:05.2]} 52. Kf1 {[%clk 0:00:07.2]}
52... Nxh3 {[%clk 0:00:05]} 53. Re2 {[%clk 0:00:06.5]} 53... Rd1+ {[%clk
0:00:05]} 54. Kg2 {[%clk 0:00:06.3]} 54... Nf4+ {[%clk 0:00:06.1]} 55. Rxf4+
{[%clk 0:00:07.6]} 55... gxf4 {[%clk 0:00:07.5]} 56. Re7 {[%clk 0:00:07.1]}
56... Kg4 {[%clk 0:00:07.3]} 57. Rxa7 {[%clk 0:00:07.4]} 57... Rd2+ {[%clk
0:00:08.4]} 58. Kf1 {[%clk 0:00:08.3]} 58... Kf3 {[%clk 0:00:08.5]} 59. Ke1
{[%clk 0:00:09.7]} 59... Rh2 {[%clk 0:00:09.4]} 60. Rb7 {[%clk 0:00:06.8]} 60...
Rxh5 {[%clk 0:00:07.7]} 61. a4 {[%clk 0:00:05.7]} 61... Kg2 {[%clk 0:00:07.8]}
62. Kd2 {[%clk 0:00:05.6]} 62... f3 {[%clk 0:00:07.8]} 63. Rg7+ {[%clk
0:00:06.7]} 63... Kf1 {[%clk 0:00:08.4]} 64. Rf7 {[%clk 0:00:06.6]} 64... f2
{[%clk 0:00:09.7]} 65. Kc3 {[%clk 0:00:06.7]} 65... Re5 {[%clk 0:00:09.3]} 66.
Kb4 {[%clk 0:00:05.7]} 66... Ke2 {[%clk 0:00:09.9]} 67. Rxf2+ {[%clk 0:00:05.6]}
67... Kxf2 {[%clk 0:00:11.4]} 68. a5 {[%clk 0:00:07.2]} 68... Ke3 {[%clk
0:00:12.4]} 69. a6 {[%clk 0:00:08.5]} 69... Kd4 {[%clk 0:00:13]} 70. a7 {[%clk
0:00:09.6]} 70... Re8 {[%clk 0:00:14.3]} 71. Kb5 {[%clk 0:00:11]} 71... Kd5
{[%clk 0:00:15]} 72. Kb6 {[%clk 0:00:12.3]} 72... Kd6 {[%clk 0:00:16]} 73. Kb7
{[%clk 0:00:13.6]} 73... Re7+ {[%clk 0:00:17.5]} 74. Kb6 {[%clk 0:00:13.9]}
74... Re8 {[%clk 0:00:18.1]} 75. Kb7 {[%clk 0:00:15.1]} 75... Re7+ {[%clk
0:00:18]} 76. Kb6 {[%clk 0:00:16.1]} 76... Re8 {[%clk 0:00:19.4]} 1/2-1/2

[Event "*** Titled Tuesday Blitz"]
[Site "Chess.com"]
[Date "2019.07.02"]
[Round "9"]
[White "jk13"]
[Black "Kubas1010"]
[Result "1-0"]
[WhiteElo "2599"]
[BlackElo "2618"]
[TimeControl "180+2"]
[EndTime "15:04:48 PDT"]
[Termination "jk13 won by resignation"]

1. e4 {[%clk 0:03:01.9]} 1... e5 {[%clk 0:03:00.3]} 2. Nf3 {[%clk 0:03:02.7]}
2... Nc6 {[%clk 0:03:01.9]} 3. Bc4 {[%clk 0:03:04]} 3... Bc5 {[%clk 0:03:02.5]}
4. c3 {[%clk 0:03:04.9]} 4... Nf6 {[%clk 0:03:03.7]} 5. d3 {[%clk 0:03:06.5]}
5... O-O {[%clk 0:03:04.2]} 6. Bg5 {[%clk 0:03:07.4]} 6... h6 {[%clk 0:02:58.3]}
7. Bh4 {[%clk 0:03:08.7]} 7... Be7 {[%clk 0:02:58.7]} 8. O-O {[%clk 0:03:05.4]}
8... d6 {[%clk 0:02:47.2]} 9. Re1 {[%clk 0:02:58.3]} 9... Nh5 {[%clk 0:02:42.8]}
10. Bg3 {[%clk 0:02:49.4]} 10... Nxg3 {[%clk 0:02:36.4]} 11. hxg3 {[%clk
0:02:51.3]} 11... Bg4 {[%clk 0:02:37.3]} 12. Nbd2 {[%clk 0:02:50.8]} 12... Kh8
{[%clk 0:02:35.5]} 13. Nf1 {[%clk 0:02:48.2]} 13... Bg5 {[%clk 0:02:29.4]} 14.
N1h2 {[%clk 0:02:15.1]} 14... Be6 {[%clk 0:02:29.6]} 15. Bb5 {[%clk 0:01:59.7]}
15... Be7 {[%clk 0:02:20.4]} 16. d4 {[%clk 0:01:57.5]} 16... a6 {[%clk
0:01:40.1]} 17. Bxc6 {[%clk 0:01:52.2]} 17... bxc6 {[%clk 0:01:41.4]} 18. dxe5
{[%clk 0:01:53.8]} 18... Rb8 {[%clk 0:01:29.4]} 19. b3 {[%clk 0:01:45.3]} 19...
c5 {[%clk 0:01:29]} 20. exd6 {[%clk 0:01:35.6]} 20... cxd6 {[%clk 0:01:29.9]}
21. c4 {[%clk 0:01:34.7]} 21... a5 {[%clk 0:01:31.3]} 22. Qd3 {[%clk 0:01:28.2]}
22... a4 {[%clk 0:01:30.9]} 23. Rab1 {[%clk 0:01:22.4]} 23... Rb4 {[%clk
0:01:28.6]} 24. Red1 {[%clk 0:00:59.9]} 24... Qb6 {[%clk 0:01:20.5]} 25. e5
{[%clk 0:00:40.1]} 25... dxe5 {[%clk 0:01:16.2]} 26. Nxe5 {[%clk 0:00:42]} 26...
Rd8 {[%clk 0:00:58]} 27. Qf3 {[%clk 0:00:39.6]} 27... Kg8 {[%clk 0:00:54.8]} 28.
Rxd8+ {[%clk 0:00:35.5]} 28... Bxd8 {[%clk 0:00:51]} 29. Nc6 {[%clk 0:00:31.9]}
29... axb3 {[%clk 0:00:46.2]} 30. axb3 {[%clk 0:00:28.8]} 30... Bf6 {[%clk
0:00:33.1]} 31. Nxb4 {[%clk 0:00:29.6]} 31... Qxb4 {[%clk 0:00:34.2]} 32. Qd3
{[%clk 0:00:26.9]} 32... Bd4 {[%clk 0:00:33.9]} 33. Nf3 {[%clk 0:00:26.2]} 33...
Bf6 {[%clk 0:00:34.8]} 34. Rd1 {[%clk 0:00:25.5]} 34... g6 {[%clk 0:00:35.3]}
35. Qe3 {[%clk 0:00:25.5]} 35... Kg7 {[%clk 0:00:35.7]} 36. Rd6 {[%clk
0:00:25.2]} 36... Qb8 {[%clk 0:00:30.7]} 37. Rc6 {[%clk 0:00:18.1]} 37... h5
{[%clk 0:00:23.2]} 38. Rxc5 {[%clk 0:00:16.5]} 38... Qd6 {[%clk 0:00:23.2]} 39.
Re5 {[%clk 0:00:11.2]} 39... Bxe5 {[%clk 0:00:15.3]} 40. Qxe5+ {[%clk 0:00:12]}
40... Qxe5 {[%clk 0:00:16.9]} 41. Nxe5 {[%clk 0:00:13.9]} 41... Kf6 {[%clk
0:00:18.6]} 42. f4 {[%clk 0:00:14.8]} 42... Kf5 {[%clk 0:00:19.4]} 43. Kf2
{[%clk 0:00:14.4]} 43... Ke4 {[%clk 0:00:20.6]} 44. Ke2 {[%clk 0:00:14.8]} 44...
h4 {[%clk 0:00:19]} 45. gxh4 {[%clk 0:00:14.1]} 45... Kxf4 {[%clk 0:00:20.5]}
46. Nc6 {[%clk 0:00:13.7]} 46... Kg3 {[%clk 0:00:21.4]} 47. Nd8 {[%clk
0:00:12.6]} 47... Bg4+ {[%clk 0:00:21.8]} 48. Ke3 {[%clk 0:00:14.2]} 48... f5
{[%clk 0:00:23.1]} 49. Ne6 {[%clk 0:00:12.7]} 49... Kxh4 {[%clk 0:00:20.9]} 50.
Kf4 {[%clk 0:00:13.4]} 50... Be2 {[%clk 0:00:20.4]} 51. g3+ {[%clk 0:00:13.8]}
51... Kh3 {[%clk 0:00:21.5]} 52. c5 {[%clk 0:00:13.5]} 52... Bb5 {[%clk
0:00:20.7]} 53. b4 {[%clk 0:00:13.9]} 53... Bd7 {[%clk 0:00:21.7]} 54. Ng5+
{[%clk 0:00:13.7]} 54... Kg2 {[%clk 0:00:22.6]} 55. Nf7 {[%clk 0:00:15]} 55...
Bb5 {[%clk 0:00:21.7]} 56. Ne5 {[%clk 0:00:14.9]} 56... g5+ {[%clk 0:00:19.4]}
57. Kxf5 {[%clk 0:00:16.2]} 57... Kxg3 {[%clk 0:00:18]} 58. Kxg5 {[%clk
0:00:17.6]} 58... Kf2 {[%clk 0:00:19.9]} 59. Kf6 {[%clk 0:00:17.9]} 59... Ke3
{[%clk 0:00:21.2]} 60. Ke6 {[%clk 0:00:18.5]} 60... Kd4 {[%clk 0:00:22.6]} 61.
Kd6 {[%clk 0:00:19.8]} 61... Kc3 {[%clk 0:00:24.1]} 62. Nc6 {[%clk 0:00:20.5]}
62... Kc4 {[%clk 0:00:24.3]} 63. Kc7 {[%clk 0:00:21.3]} 63... Ba4 {[%clk
0:00:23.2]} 64. Kb6 {[%clk 0:00:22.3]} 64... Kc3 {[%clk 0:00:21.4]} 65. Ne5
{[%clk 0:00:21.5]} 65... Kxb4 {[%clk 0:00:21.6]} 66. Nd3+ {[%clk 0:00:22.9]}
66... Kc3 {[%clk 0:00:21.9]} 67. Nf4 {[%clk 0:00:23.7]} 67... Be8 {[%clk
0:00:22.9]} 68. Nd5+ {[%clk 0:00:24.6]} 68... Kd4 {[%clk 0:00:22.8]} 69. Nc7
{[%clk 0:00:24.5]} 69... Ba4 {[%clk 0:00:23.4]} 70. Nb5+ {[%clk 0:00:25.4]}
70... Ke5 {[%clk 0:00:21.2]} 71. c6 {[%clk 0:00:26.2]} 71... Bd1 {[%clk
0:00:21.8]} 72. c7 {[%clk 0:00:23.8]} 72... Bg4 {[%clk 0:00:21.7]} 73. Kc6
{[%clk 0:00:23.9]} 73... Bf3+ {[%clk 0:00:21]} 74. Kb6 {[%clk 0:00:24.6]} 74...
Bg4 {[%clk 0:00:22.1]} 75. Na7 {[%clk 0:00:23.1]} 75... Kd6 {[%clk 0:00:22.2]}
76. Nc6 {[%clk 0:00:22.8]} 76... Bh3 {[%clk 0:00:22]} 77. Nd4 {[%clk 0:00:23.9]}
77... Bg4 {[%clk 0:00:18]} 78. Nb5+ {[%clk 0:00:22.8]} 78... Ke7 {[%clk
0:00:18.9]} 79. Kb7 {[%clk 0:00:22.6]} 79... Bf3+ {[%clk 0:00:19.7]} 80. Kb8
{[%clk 0:00:23.8]} 80... Bg4 {[%clk 0:00:21.2]} 81. Nd4 {[%clk 0:00:24.8]} 81...
Bh3 {[%clk 0:00:21.7]} 82. Nf3 {[%clk 0:00:25]} 82... Bg4 {[%clk 0:00:22.4]} 83.
Ne5 {[%clk 0:00:26.3]} 83... Bh3 {[%clk 0:00:23]} 84. Kb7 {[%clk 0:00:27]} 84...
Ke8 {[%clk 0:00:22.3]} 85. Kc6 {[%clk 0:00:28]} 85... Bg2+ {[%clk 0:00:21.6]}
86. Kd6 {[%clk 0:00:29.1]} 86... Bh3 {[%clk 0:00:23.1]} 87. Ng6 {[%clk
0:00:29.2]} 87... Bc8 {[%clk 0:00:23]} 88. Nf4 {[%clk 0:00:30.8]} 88... Bg4
{[%clk 0:00:21.4]} 89. Ne6 {[%clk 0:00:31.8]} 89... Kf7 {[%clk 0:00:21.8]} 90.
c8=Q {[%clk 0:00:31.9]} 1-0

[Event "*** Titled Tuesday Blitz"]
[Site "Chess.com"]
[Date "2019.07.02"]
[Round "9"]
[White "KamilPlichta"]
[Black "vlad_Sid"]
[Result "0-1"]
[WhiteElo "2776"]
[BlackElo "2576"]
[TimeControl "180+2"]
[EndTime "15:04:58 PDT"]
[Termination "vlad_Sid won on time"]

1. d4 {[%clk 0:03:01.9]} 1... Nf6 {[%clk 0:03:00.8]} 2. Bg5 {[%clk 0:03:03]}
2... d5 {[%clk 0:02:56.5]} 3. e3 {[%clk 0:03:03.6]} 3... c5 {[%clk 0:02:52.6]}
4. Bxf6 {[%clk 0:03:04.4]} 4... exf6 {[%clk 0:02:54.5]} 5. c3 {[%clk 0:03:05.3]}
5... Nc6 {[%clk 0:02:53.9]} 6. Nd2 {[%clk 0:03:05.6]} 6... Be6 {[%clk
0:02:52.4]} 7. Ngf3 {[%clk 0:03:06.6]} 7... Bd6 {[%clk 0:02:52.3]} 8. dxc5
{[%clk 0:03:07.1]} 8... Bxc5 {[%clk 0:02:52.9]} 9. Nb3 {[%clk 0:03:08.8]} 9...
Bb6 {[%clk 0:02:53.1]} 10. Nbd4 {[%clk 0:03:08]} 10... O-O {[%clk 0:02:52.7]}
11. Be2 {[%clk 0:03:06.7]} 11... Qd6 {[%clk 0:02:33.9]} 12. O-O {[%clk 0:03:05]}
12... Rfe8 {[%clk 0:02:32.1]} 13. Qd2 {[%clk 0:02:57.9]} 13... a6 {[%clk
0:02:29.5]} 14. Rad1 {[%clk 0:02:58]} 14... Rad8 {[%clk 0:02:29.6]} 15. Rfe1
{[%clk 0:02:44]} 15... g6 {[%clk 0:02:19.6]} 16. g3 {[%clk 0:02:42.2]} 16... Kg7
{[%clk 0:02:18.3]} 17. Bf1 {[%clk 0:02:35.5]} 17... Bg4 {[%clk 0:02:16.6]} 18.
Bg2 {[%clk 0:02:27.8]} 18... Bxd4 {[%clk 0:02:11.2]} 19. exd4 {[%clk 0:02:17]}
19... Qd7 {[%clk 0:02:12.2]} 20. Rxe8 {[%clk 0:02:09.8]} 20... Rxe8 {[%clk
0:02:12.4]} 21. Re1 {[%clk 0:02:11.4]} 21... Bxf3 {[%clk 0:02:04.7]} 22. Bxf3
{[%clk 0:02:09.1]} 22... Rxe1+ {[%clk 0:02:06.1]} 23. Qxe1 {[%clk 0:02:08.4]}
23... f5 {[%clk 0:01:58.1]} 24. Kg2 {[%clk 0:02:04.2]} 24... g5 {[%clk
0:01:59.1]} 25. Qe3 {[%clk 0:01:58]} 25... f6 {[%clk 0:01:57.3]} 26. Bh5 {[%clk
0:01:36.2]} 26... Ne7 {[%clk 0:01:54.4]} 27. Bd1 {[%clk 0:01:26.4]} 27... Ng6
{[%clk 0:01:48.8]} 28. f4 {[%clk 0:01:12.2]} 28... g4 {[%clk 0:01:39.7]} 29. Bc2
{[%clk 0:01:05.5]} 29... Kf7 {[%clk 0:01:38.6]} 30. Bd3 {[%clk 0:01:02.6]} 30...
Ne7 {[%clk 0:01:37.4]} 31. b3 {[%clk 0:00:59.7]} 31... b5 {[%clk 0:01:36.4]} 32.
Kf2 {[%clk 0:00:53.5]} 32... Nc8 {[%clk 0:01:33]} 33. Qc1 {[%clk 0:00:49.8]}
33... Nd6 {[%clk 0:01:33.1]} 34. Qa3 {[%clk 0:00:51]} 34... Qc6 {[%clk
0:01:29.4]} 35. Qb4 {[%clk 0:00:46.9]} 35... Ne4+ {[%clk 0:01:24.6]} 36. Bxe4
{[%clk 0:00:48.3]} 36... fxe4 {[%clk 0:01:26.5]} 37. Ke3 {[%clk 0:00:46.9]}
37... Kg6 {[%clk 0:01:22.1]} 38. a4 {[%clk 0:00:44.6]} 38... bxa4 {[%clk
0:01:22.1]} 39. bxa4 {[%clk 0:00:45.5]} 39... Qc7 {[%clk 0:01:19.3]} 40. a5
{[%clk 0:00:34.3]} 40... Qc6 {[%clk 0:01:17.5]} 41. Qc5 {[%clk 0:00:33.6]} 41...
Qa4 {[%clk 0:01:15]} 42. Qf8 {[%clk 0:00:33.4]} 42... Qd1 {[%clk 0:01:07.2]} 43.
Qg8+ {[%clk 0:00:30.9]} 43... Kh6 {[%clk 0:01:07.5]} 44. Qf8+ {[%clk 0:00:26.5]}
44... Kg6 {[%clk 0:01:08.6]} 45. Qe8+ {[%clk 0:00:24.4]} 45... Kg7 {[%clk
0:01:07.4]} 46. Qd7+ {[%clk 0:00:24.3]} 46... Kh6 {[%clk 0:01:06.9]} 47. f5
{[%clk 0:00:10.6]} 47... Qf3+ {[%clk 0:01:05.3]} 48. Kd2 {[%clk 0:00:12]} 48...
Qd3+ {[%clk 0:01:07.2]} 49. Kc1 {[%clk 0:00:11.5]} 49... Qxc3+ {[%clk
0:01:09.1]} 50. Kb1 {[%clk 0:00:12.6]} 50... Qxd4 {[%clk 0:01:05.9]} 51. Qf7
{[%clk 0:00:12.8]} 51... Qg1+ {[%clk 0:01:03.2]} 52. Ka2 {[%clk 0:00:13.2]}
52... Qxh2+ {[%clk 0:01:05.1]} 53. Ka1 {[%clk 0:00:14.2]} 53... Qg1+ {[%clk
0:01:05.4]} 54. Ka2 {[%clk 0:00:15]} 54... Qf2+ {[%clk 0:01:06.4]} 55. Ka1
{[%clk 0:00:16.2]} 55... Qe1+ {[%clk 0:01:07.1]} 56. Kb2 {[%clk 0:00:14.1]}
56... Qd2+ {[%clk 0:01:06.2]} 57. Kb3 {[%clk 0:00:14]} 57... Qd3+ {[%clk
0:01:07.5]} 58. Kb4 {[%clk 0:00:14]} 58... Qd4+ {[%clk 0:01:08.5]} 59. Ka3
{[%clk 0:00:15.4]} 59... Kg5 {[%clk 0:01:08]} 60. Qxh7 {[%clk 0:00:14.2]} 60...
Qc3+ {[%clk 0:01:03.2]} 61. Ka4 {[%clk 0:00:14.2]} 61... Qxg3 {[%clk 0:01:03.6]}
62. Qg6+ {[%clk 0:00:14.5]} 62... Kf4 {[%clk 0:01:04.4]} 63. Qxf6 {[%clk
0:00:16]} 63... Qf3 {[%clk 0:00:58.2]} 64. Qe6 {[%clk 0:00:16.7]} 64... g3
{[%clk 0:00:54]} 65. f6 {[%clk 0:00:18.2]} 65... g2 {[%clk 0:00:54.1]} 66. f7
{[%clk 0:00:19.6]} 66... Ke3 {[%clk 0:00:55.4]} 67. Qb6+ {[%clk 0:00:19.7]}
67... Kd2 {[%clk 0:00:56.4]} 68. Qh6+ {[%clk 0:00:20.4]} 68... Ke1 {[%clk
0:00:53.1]} 69. Qc1+ {[%clk 0:00:15.1]} 69... Kf2 {[%clk 0:00:53.1]} 70. Qd2+
{[%clk 0:00:14.5]} 70... Kg3 {[%clk 0:00:52.6]} 71. Qg5+ {[%clk 0:00:15.6]}
71... Kf2 {[%clk 0:00:53.2]} 72. Qd2+ {[%clk 0:00:14.1]} 72... Kg1 {[%clk
0:00:51.1]} 73. Qd4+ {[%clk 0:00:14.8]} 73... Kh2 {[%clk 0:00:45.3]} 74. Qh8+
{[%clk 0:00:13.8]} 74... Qh3 {[%clk 0:00:38.5]} 75. Qe5+ {[%clk 0:00:14.5]}
75... Kh1 {[%clk 0:00:38.1]} 76. f8=Q {[%clk 0:00:13.8]} 76... g1=Q {[%clk
0:00:39.2]} 77. Qb2 {[%clk 0:00:08.7]} 77... Qd1+ {[%clk 0:00:38.5]} 78. Kb4
{[%clk 0:00:10.1]} 78... Qe1+ {[%clk 0:00:26.9]} 0-1

[Event "*** Titled Tuesday Blitz"]
[Site "Chess.com"]
[Date "2019.07.02"]
[Round "9"]
[White "GMKrikor"]
[Black "riconaipe"]
[Result "1-0"]
[WhiteElo "2707"]
[BlackElo "2494"]
[TimeControl "180+2"]
[EndTime "15:05:35 PDT"]
[Termination "GMKrikor won by resignation"]

1. c4 {[%clk 0:03:01.9]} 1... c6 {[%clk 0:02:57.5]} 2. g3 {[%clk 0:02:54.5]}
2... d5 {[%clk 0:02:58.5]} 3. Bg2 {[%clk 0:02:55.2]} 3... Nf6 {[%clk 0:03:00]}
4. Nf3 {[%clk 0:02:51.2]} 4... g6 {[%clk 0:02:59.3]} 5. b3 {[%clk 0:02:51.1]}
5... Bg7 {[%clk 0:03:00.4]} 6. Bb2 {[%clk 0:02:52.5]} 6... O-O {[%clk 0:03:02]}
7. O-O {[%clk 0:02:52.3]} 7... a5 {[%clk 0:03:01.3]} 8. Nc3 {[%clk 0:02:38.5]}
8... Na6 {[%clk 0:02:57.5]} 9. Rc1 {[%clk 0:02:32]} 9... d4 {[%clk 0:02:57.1]}
10. Na4 {[%clk 0:02:28.6]} 10... c5 {[%clk 0:02:45.7]} 11. e3 {[%clk 0:02:18.4]}
11... Bd7 {[%clk 0:02:45.5]} 12. exd4 {[%clk 0:02:11]} 12... Bxa4 {[%clk
0:02:45.5]} 13. bxa4 {[%clk 0:02:12.9]} 13... Ne8 {[%clk 0:02:26.6]} 14. Qb3
{[%clk 0:02:10.5]} 14... cxd4 {[%clk 0:02:27.2]} 15. c5 {[%clk 0:01:59.7]} 15...
Rc8 {[%clk 0:02:22.1]} 16. Ba3 {[%clk 0:01:55]} 16... Qc7 {[%clk 0:01:41.7]} 17.
Rfe1 {[%clk 0:01:47.4]} 17... e5 {[%clk 0:01:39.5]} 18. Ng5 {[%clk 0:01:40.2]}
18... Nf6 {[%clk 0:01:20.8]} 19. Qxb7 {[%clk 0:01:32]} 19... Nb4 {[%clk
0:01:21.7]} 20. Qxc7 {[%clk 0:01:26.5]} 20... Rxc7 {[%clk 0:01:21.6]} 21. Bxb4
{[%clk 0:01:26.2]} 21... axb4 {[%clk 0:01:23.1]} 22. Rxe5 {[%clk 0:00:49.8]}
22... Nd7 {[%clk 0:01:23.7]} 23. Re7 {[%clk 0:00:42]} 23... Bf6 {[%clk
0:01:19.7]} 24. Rxd7 {[%clk 0:00:42.6]} 24... Rxd7 {[%clk 0:01:15.3]} 25. Ne4
{[%clk 0:00:38]} 25... Be7 {[%clk 0:01:15.5]} 26. d3 {[%clk 0:00:31.7]} 26...
Ra7 {[%clk 0:01:05.1]} 27. c6 {[%clk 0:00:23.3]} 27... Rc8 {[%clk 0:01:06.2]}
28. Nd2 {[%clk 0:00:20]} 28... Rxa4 {[%clk 0:00:56]} 29. Bd5 {[%clk 0:00:20.6]}
29... Ra5 {[%clk 0:00:53.9]} 30. Bb3 {[%clk 0:00:17.1]} 30... Rc5 {[%clk
0:00:48]} 31. Rxc5 {[%clk 0:00:13.7]} 31... Bxc5 {[%clk 0:00:49.6]} 32. Bd5
{[%clk 0:00:15.6]} 32... Kf8 {[%clk 0:00:41.9]} 33. Kg2 {[%clk 0:00:15.6]} 33...
Ke7 {[%clk 0:00:42.3]} 34. Nc4 {[%clk 0:00:14.8]} 34... Ra8 {[%clk 0:00:28.5]}
35. Nd2 {[%clk 0:00:05.8]} 35... Kd6 {[%clk 0:00:26.8]} 36. Bxf7 {[%clk
0:00:06.3]} 36... Kxc6 {[%clk 0:00:26]} 37. Ne4 {[%clk 0:00:06]} 37... Ra3
{[%clk 0:00:22.5]} 38. Bb3 {[%clk 0:00:05.6]} 38... Be7 {[%clk 0:00:21.1]} 39.
h4 {[%clk 0:00:06.1]} 39... Ra5 {[%clk 0:00:21.5]} 40. Bg8 {[%clk 0:00:05.3]}
40... h6 {[%clk 0:00:21.5]} 41. Bb3 {[%clk 0:00:04.6]} 41... Ra7 {[%clk
0:00:19.1]} 42. Nd2 {[%clk 0:00:03.8]} 42... Kc5 {[%clk 0:00:19.1]} 43. Ne4+
{[%clk 0:00:05.2]} 43... Kc6 {[%clk 0:00:19.4]} 44. Nd2 {[%clk 0:00:07.1]} 44...
Bd6 {[%clk 0:00:20]} 45. Ne4 {[%clk 0:00:08]} 45... Re7 {[%clk 0:00:21.1]} 46.
f4 {[%clk 0:00:06.4]} 46... Bc7 {[%clk 0:00:14.9]} 47. Kf3 {[%clk 0:00:06.5]}
47... h5 {[%clk 0:00:08.2]} 48. Bc4 {[%clk 0:00:05.7]} 48... Bd6 {[%clk
0:00:09.4]} 49. Bb3 {[%clk 0:00:05.3]} 49... Bc7 {[%clk 0:00:10.7]} 50. Ba4+
{[%clk 0:00:06.8]} 50... Kd5 {[%clk 0:00:10.6]} 51. Bc2 {[%clk 0:00:07]} 51...
Bb6 {[%clk 0:00:09.5]} 52. Bb3+ {[%clk 0:00:07.8]} 52... Kc6 {[%clk 0:00:11.2]}
53. Ke2 {[%clk 0:00:05.1]} 53... Ra7 {[%clk 0:00:11.9]} 54. Kf3 {[%clk
0:00:06.1]} 54... Ra3 {[%clk 0:00:13.1]} 55. g4 {[%clk 0:00:06.8]} 55... hxg4+
{[%clk 0:00:13.6]} 56. Kxg4 {[%clk 0:00:08.7]} 56... Bc7 {[%clk 0:00:14.9]} 57.
Ng5 {[%clk 0:00:06.2]} 57... Ra5 {[%clk 0:00:13.4]} 58. Ne6 {[%clk 0:00:06.8]}
58... Bb6 {[%clk 0:00:08.6]} 59. Nf8 {[%clk 0:00:05.3]} 59... Rc5 {[%clk
0:00:07.8]} 60. Nxg6 {[%clk 0:00:05.9]} 60... Rc1 {[%clk 0:00:09.5]} 61. h5
{[%clk 0:00:06.8]} 61... Kd6 {[%clk 0:00:10.6]} 62. Kf5 {[%clk 0:00:07.6]} 62...
Rh1 {[%clk 0:00:10]} 63. Kg4 {[%clk 0:00:06.7]} 63... Bd8 {[%clk 0:00:10.1]} 64.
Ne5 {[%clk 0:00:07]} 64... Bf6 {[%clk 0:00:06]} 65. Nf7+ {[%clk 0:00:07]} 65...
Ke7 {[%clk 0:00:07.1]} 66. h6 {[%clk 0:00:08.9]} 66... Rg1+ {[%clk 0:00:05.8]}
67. Kf5 {[%clk 0:00:09.7]} 67... Rh1 {[%clk 0:00:05.1]} 68. Kg6 {[%clk
0:00:06.2]} 68... Rh3 {[%clk 0:00:05.8]} 69. Bc4 {[%clk 0:00:04.6]} 69... Rh2
{[%clk 0:00:05.9]} 70. Ng5 {[%clk 0:00:04.9]} 70... Rh1 {[%clk 0:00:05.3]} 71.
h7 {[%clk 0:00:05.2]} 71... Rc1 {[%clk 0:00:04.3]} 72. Ne4 {[%clk 0:00:04.8]}
72... Bh8 {[%clk 0:00:05.3]} 73. Bb3 {[%clk 0:00:05.4]} 73... Rg1+ {[%clk
0:00:05.2]} 74. Kf5 {[%clk 0:00:06.8]} 74... Rh1 {[%clk 0:00:06.6]} 75. Ng5
{[%clk 0:00:08.3]} 75... Rh2 {[%clk 0:00:04.3]} 76. Ke4 {[%clk 0:00:06.2]} 76...
Bf6 {[%clk 0:00:04.9]} 77. Bg8 {[%clk 0:00:04.1]} 77... Kf8 {[%clk 0:00:03]} 78.
Ne6+ {[%clk 0:00:04]} 78... Ke7 {[%clk 0:00:04.2]} 79. Nxd4 {[%clk 0:00:04.8]}
79... Bxd4 {[%clk 0:00:02.9]} 80. Kxd4 {[%clk 0:00:06.1]} 80... Kf6 {[%clk
0:00:04.1]} 81. Ke4 {[%clk 0:00:03.5]} 81... Rh4 {[%clk 0:00:05.1]} 82. d4
{[%clk 0:00:04.5]} 82... Kg7 {[%clk 0:00:06.5]} 83. d5 {[%clk 0:00:05.4]} 83...
Rh1 {[%clk 0:00:04.5]} 84. d6 {[%clk 0:00:06.7]} 84... Rd1 {[%clk 0:00:05.4]}
85. Ke5 {[%clk 0:00:08.2]} 85... Re1+ {[%clk 0:00:06.4]} 86. Kd5 {[%clk
0:00:08.4]} 86... Ra1 {[%clk 0:00:05.5]} 87. Kc5 {[%clk 0:00:09.4]} 87... b3
{[%clk 0:00:05.9]} 88. axb3 {[%clk 0:00:09.1]} 88... Rf1 {[%clk 0:00:07.2]} 89.
d7 {[%clk 0:00:09.5]} 89... Rd1 {[%clk 0:00:08.1]} 90. Bd5 {[%clk 0:00:10]} 1-0